fUSD/lending_fUSD_20240714
["ID","MTS","AMOUNT","RATE_DAILY","PERIOD"]
[332128085,1720978242530,-500.0,0.00013946,2]
[332128087,1720978242539,-500.0,0.00013946,2]
[332128089,1720978242548,-500.0,0.00013946,2]
[332128091,1720978242559,-500.0,0.00013946,2]
[332128093,1720978242569,-650.0,0.00013946,2]
[332128095,1720978242580,-500.0,0.00013946,2]
[332128097,1720978242590,-500.0,0.00013946,2]
[332128100,1720978242602,-500.0,0.00013946,2]
[332128102,1720978242613,-500.0,0.00013946,2]
[332128104,1720978242625,-500.0,0.00013946,2]
[332128106,1720978242634,-500.0,0.00013946,2]
[332128108,1720978242645,-500.0,0.00013946,2]
[332128110,1720978242655,-500.0,0.00013946,2]
[332128113,1720978242667,-520.65,0.00013946,2]
[332128115,1720978242677,-500.0,0.00013946,2]
[332128118,1720978242686,-500.0,0.00013946,2]
[332128121,1720978242698,-623.38,0.00013946,2]
[332128124,1720978242708,-500.0,0.00013946,2]
[332128127,1720978242719,-500.0,0.00013946,2]
[332128132,1720978242730,-500.0,0.00013946,2]
[332128135,1720978242740,-500.0,0.00013946,2]
[332128138,1720978242750,-500.0,0.00013946,2]
[332128140,1720978242760,-500.0,0.00013946,2]
[332128142,1720978242770,-500.0,0.00013946,2]
[332128144,1720978242780,-580.83,0.00013946,2]
[332128147,1720978242791,-500.0,0.00013946,2]
[332128149,1720978242801,-500.0,0.00013946,2]
[332128151,1720978242811,-500.0,0.00013946,2]
[332128153,1720978242821,-500.0,0.00013946,2]
[332128155,1720978242831,-500.0,0.00013946,2]
[332128158,1720978242842,-500.0,0.00013946,2]
[332128159,1720978242852,-500.0,0.00013946,2]
[332128160,1720978242862,-500.0,0.00013946,2]
[332128162,1720978242872,-500.0,0.00013946,2]
[332128164,1720978242883,-562.51,0.00013946,2]
[332128166,1720978242895,-500.0,0.00013946,2]
[332128168,1720978242905,-500.0,0.00013946,2]
[332128170,1720978242915,-500.0,0.00013946,2]
[332128172,1720978242926,-500.0,0.00013946,2]
[332128174,1720978242936,-500.0,0.00013946,2]
[332128176,1720978242948,-500.0,0.00013946,2]
[332128178,1720978242959,-500.0,0.00013946,2]
[332128180,1720978242969,-500.0,0.00013946,2]
[332128182,1720978242980,-528.01,0.00013946,2]
[332128185,1720978242990,-500.0,0.00013946,2]
[332128189,1720978243001,-500.0,0.00013946,2]
[332128192,1720978243011,-500.0,0.00013946,2]
[332128195,1720978243022,-516.96,0.00013946,2]
[332128198,1720978243032,-1058.88,0.00013946,2]
[332128200,1720978243042,-500.0,0.00013946,2]
[332128202,1720978243052,-500.0,0.00013946,2]
[332128204,1720978243063,-500.0,0.00013946,2]
[332128206,1720978243074,-500.0,0.00013946,2]
[332128208,1720978243084,-574.81,0.00013946,2]
[332128210,1720978243095,-679.56,0.00013946,2]
[332128212,1720978243105,-500.0,0.00013946,2]
[332128214,1720978243115,-500.0,0.00013946,2]
[332128216,1720978243126,-500.0,0.00013946,2]
[332128218,1720978243136,-500.0,0.00013946,2]
[332128220,1720978243147,-1259.78,0.00013946,2]
[332128222,1720978243157,-500.0,0.00013946,2]
[332128225,1720978243167,-500.0,0.00013946,2]
[332128227,1720978243178,-616.65,0.00013946,2]
[332128229,1720978243188,-556.22201015,0.00013946,2]
[332128231,1720978243198,-500.0,0.00013946,2]
[332128233,1720978243208,-990.57,0.00013946,2]
[332128235,1720978243218,-500.0,0.00013946,2]
[332128237,1720978243228,-500.0,0.00013946,2]
[332128239,1720978243239,-670.89,0.00013946,2]
[332128241,1720978243249,-500.0,0.00013946,2]
[332128243,1720978243259,-536.63,0.00013946,2]
[332128246,1720978243270,-500.0,0.00013946,2]
[332128248,1720978243280,-547.92281136,0.00013946,2]
[332128250,1720978243290,-566.6,0.00013946,2]
[332128252,1720978243301,-500.0,0.00013946,2]
[332128254,1720978243311,-550.42,0.00013946,2]
[332128256,1720978243321,-500.0,0.00013946,2]
[332128258,1720978243332,-500.0,0.00013946,2]
[332128260,1720978243343,-918.19,0.00013946,2]
[332128263,1720978243353,-500.0,0.00013946,2]
[332128265,1720978243363,-500.0,0.00013946,2]
[332128267,1720978243376,-3643.46,0.00013946,2]
[332128269,1720978243388,-500.0,0.00013946,2]
[332128272,1720978243404,-576.81,0.00013946,2]
[332128274,1720978243414,-500.0,0.00013946,2]
[332128276,1720978243424,-500.0,0.00013946,2]
[332128278,1720978243436,-500.0,0.00013946,2]
[332128280,1720978243447,-349.3816326,0.00013946,2]
[332128282,1720978243458,-584.28,0.00013946,2]
[332128284,1720978243471,-500.0,0.00013946,2]
[332128287,1720978243482,-500.0,0.00013946,2]
[332128289,1720978243493,-500.0,0.00013946,2]
[332128291,1720978243504,-500.0,0.00013946,2]
[332128293,1720978243514,-676.63,0.00013946,2]
[332128295,1720978243525,-500.0,0.00013946,2]
[332128297,1720978243536,-500.0,0.00013946,2]
[332128299,1720978243546,-500.0,0.00013946,2]
[332128301,1720978243557,-544.81,0.00013946,2]
[332128304,1720978243567,-1258.98,0.00013946,2]
[332128306,1720978243578,-500.0,0.00013946,2]
[332128308,1720978243588,-574.07,0.00013946,2]
[332128310,1720978243598,-500.0,0.00013946,2]
[332128312,1720978243608,-4785.65,0.00013946,2]
[332128314,1720978243618,-891.35,0.00013946,2]
[332128316,1720978243628,-168.27119142,0.00013946,2]
[332128318,1720978243638,-500.0,0.00013946,2]
[332128320,1720978243650,-500.0,0.00013946,2]
[332128322,1720978243660,-500.0,0.00013946,2]
[332128324,1720978243670,-712.23,0.00013946,2]
[332128326,1720978243680,-500.0,0.00013946,2]
[332128329,1720978243691,-500.0,0.00013946,2]
[332128331,1720978243701,-2060.95,0.00013946,2]
[332128333,1720978243711,-500.0,0.00013946,2]
[332128334,1720978243721,-500.0,0.00013946,2]
[332128335,1720978243731,-500.0,0.00013946,2]
[332128336,1720978243742,-500.0,0.00013946,2]
[332128339,1720978243753,-500.0,0.00013946,2]
[332128341,1720978243763,-500.0,0.00013946,2]
[332128343,1720978243772,-500.0,0.00013946,2]
[332128345,1720978243784,-500.0,0.00013946,2]
[332128347,1720978243796,-500.0,0.00013946,2]
[332128349,1720978243808,-23279.7843128,0.00013948,3]
[332128352,1720978243819,-47560.0603612,0.00013958,2]
[332128354,1720978243829,-11639.8921564,0.0001396,3]
[332128356,1720978243840,-34919.6764692,0.0001396,3]
[332128358,1720978243850,-2000.0,0.00013964,2]
[332128360,1720978243860,-200.0,0.00013964,2]
[332128362,1720978243871,-200.0,0.00013964,2]
[332128364,1720978243882,-2000.0,0.00013964,2]
[332128367,1720978243894,-200.0,0.00013964,2]
[332128369,1720978243904,-1000.0,0.00013973,5]
[332128371,1720978243915,-46559.5686256,0.0001398,3]
[332128373,1720978243925,-358.85703166,0.00013989,2]
[332128375,1720978243935,-11560.5323444,0.00013998,2]
[332128377,1720978243946,-2601.9046181,0.00013998,2]
[332128379,1720978243956,-463.0207473,0.00013998,2]
[332128381,1720978243966,-533.80332369,0.00013999,2]
[332128384,1720978243977,-153.58758173,0.00013999,2]
[332128386,1720978243988,-176.34357662,0.00013999,2]
[332128388,1720978243999,-522.0,0.00013999,2]
[332128390,1720978244011,-201862.97275176,0.00014,2]
[332128392,1720978244022,-127420.78884305,0.00014,2]
[332128395,1720978244041,-31638.86863061,0.00014,2]
[332128398,1720978244055,-1965.720614,0.00014,2]
[332128401,1720978244070,-574.92905729,0.00014,2]
[332128404,1720978244088,-807.73443717,0.00014,2]
[332128413,1720978244177,-63975.57624006,0.00014,2]
[332128416,1720978244191,-633.56217276,0.00014,2]
[332128418,1720978244204,-597.94165345,0.00014,2]
[332128420,1720978244215,-345.30254868,0.00014,2]
[332128423,1720978244228,-293.80853246,0.00014,2]
[332128425,1720978244240,-1728.53770147,0.00014,2]
[332128427,1720978244252,-623.2797952,0.00014,2]
[332128430,1720978244267,-655.16092701,0.00014,2]
[332128434,1720978244295,-378.703701,0.00014,2]
[332128436,1720978244309,-4143.31,0.00014,2]
[332128447,1720978244405,-5604.72198332,0.00014,2]
[332128450,1720978244422,-957.57774934,0.00014,2]
[332128614,1720978246070,-1383.95848256,0.00014,2]
[332128616,1720978246081,-443.4506406,0.00014,2]
[332128618,1720978246092,-930.552031,0.00014,2]
[332128621,1720978246103,-6014.99120051,0.00014,2]
[332128632,1720978246203,-312.98301327,0.00014,2]
[332128634,1720978246215,-3776.645238,0.00014,2]
[332128637,1720978246226,-17994.64284803,0.00014,2]
[332128639,1720978246237,-3795.64476265,0.00014,2]
[332128641,1720978246249,-24744.4,0.00014,2]
[332128643,1720978246260,-520.38152683,0.00014,2]
[332128645,1720978246271,-393.05071,0.00014,2]
[332128648,1720978246287,-517.92055888,0.00014,2]
[332128650,1720978246298,-64462.9994439,0.00014,2]
[332128652,1720978246309,-405.25319394,0.00014,2]
[332128654,1720978246320,-86854.93815432,0.00014,2]
[332128660,1720978246363,-1853.9365,0.00014,2]
[332128985,1720978654394,376.92,0.00010952,2]
[332129004,1720979190672,358.07,0.00010809,2]
[332129018,1720979240619,-235.76657497,0.00011098,2]
[332129019,1720979240642,-358.85703166,0.00011098,2]
[332129020,1720979240666,-473.2943743,0.00011098,2]
[332129021,1720979240688,-476.03363013,0.00011098,2]
[332129029,1720979347682,167.34984429,0.00011098,2]
[332129044,1720979432112,-369.18293041,0.00012302,2]
[332129045,1720979432121,-247.98567748,0.00012314,2]
[332129046,1720979432131,-329.25579374,0.00012314,2]
[332129047,1720979432140,-268.94,0.00012674,2]
[332129048,1720979432149,-250.0,0.00012731,2]
[332129049,1720979432158,-200.0,0.00012762,2]
[332129050,1720979432166,-800.0,0.00012804,2]
[332129051,1720979432176,-1250.0,0.00013,2]
[332129052,1720979432185,-7.79736998,0.00013,2]
[332129053,1720979432197,-149.33263002,0.00013,2]
[332129054,1720979432206,-358.07,0.00013073,2]
[332129055,1720979432215,-64.21677897,0.00013291,2]
[332129056,1720979432226,-909.67996557,0.00013291,2]
[332129057,1720979432236,-7439.79,0.00013291,2]
[332129058,1720979432247,-8818.1652024,0.00013291,2]
[332129059,1720979432257,-266.95294903,0.00013291,2]
[332129060,1720979432268,-551.29288503,0.00013291,2]
[332129061,1720979432283,-1324.76351156,0.00013291,2]
[332129062,1720979432295,-582.92504737,0.00013291,2]
[332129063,1720979432306,-28450.141312,0.00013291,2]
[332129064,1720979432316,-15825.40603948,0.00013291,2]
[332129065,1720979432327,-3669.50244182,0.00013291,2]
[332129066,1720979432340,-6060.04196047,0.00013291,2]
[332129067,1720979432351,-718.42740746,0.00013291,2]
[332129068,1720979432361,-15312.69449884,0.00013291,2]
[332129069,1720979432371,-150.0,0.00013424,2]
[332129070,1720979432379,-272.56512806,0.00013452,2]
[332129071,1720979432388,-1078.28995199,0.00013516,2]
[332129072,1720979432397,-342.586,0.00013681,2]
[332129073,1720979432406,-304.61,0.00013699,2]
[332129074,1720979432415,-3271.78277745,0.00013719,2]
[332129075,1720979432425,-1000.0,0.00013736,2]
[332129076,1720979432434,-1000.0,0.00013736,2]
[332129077,1720979432443,-1235.6588,0.00013736,2]
[332129078,1720979432452,-500.0,0.00013781,2]
[332129079,1720979432461,-500.0,0.00013781,2]
[332129080,1720979432472,-500.0,0.00013781,2]
[332129081,1720979432481,-500.0,0.00013781,2]
[332129082,1720979432491,-500.0,0.00013781,2]
[332129083,1720979432500,-500.0,0.00013781,2]
[332129084,1720979432509,-500.0,0.00013781,2]
[332129085,1720979432519,-500.0,0.00013781,2]
[332129086,1720979432528,-500.0,0.00013781,2]
[332129087,1720979432539,-500.0,0.00013781,2]
[332129088,1720979432551,-500.0,0.00013781,2]
[332129089,1720979432562,-500.0,0.00013781,2]
[332129090,1720979432573,-500.0,0.00013781,2]
[332129091,1720979432583,-500.0,0.00013781,2]
[332129092,1720979432593,-500.0,0.00013781,2]
[332129093,1720979432604,-500.0,0.00013781,2]
[332129095,1720979432616,-500.0,0.00013781,2]
[332129097,1720979432627,-500.0,0.00013781,2]
[332129099,1720979432636,-500.0,0.00013781,2]
[332129101,1720979432645,-500.0,0.00013781,2]
[332129103,1720979432655,-500.0,0.00013781,2]
[332129105,1720979432665,-527.3557205,0.00013781,2]
[332129107,1720979432675,-500.0,0.00013781,2]
[332129109,1720979432684,-756.78,0.00013781,2]
[332129111,1720979432693,-583.02297633,0.00013781,2]
[332129113,1720979432702,-500.0,0.00013781,2]
[332129115,1720979432711,-607.76642306,0.00013781,2]
[332129117,1720979432720,-500.0,0.00013781,2]
[332129119,1720979432729,-500.0,0.00013781,2]
[332129121,1720979432738,-500.0,0.00013781,2]
[332129123,1720979432747,-500.0,0.00013781,2]
[332129124,1720979432756,-500.0,0.00013781,2]
[332129126,1720979432765,-500.0,0.00013781,2]
[332129128,1720979432774,-500.0,0.00013781,2]
[332129130,1720979432784,-500.0,0.00013781,2]
[332129132,1720979432793,-500.0,0.00013781,2]
[332129134,1720979432803,-500.0,0.00013781,2]
[332129136,1720979432814,-500.0,0.00013781,2]
[332129138,1720979432823,-500.0,0.00013781,2]
[332129140,1720979432831,-500.0,0.00013781,2]
[332129142,1720979432841,-500.0,0.00013781,2]
[332129144,1720979432850,-576.33,0.00013781,2]
[332129146,1720979432859,-500.0,0.00013781,2]
[332129148,1720979432868,-500.0,0.00013781,2]
[332129150,1720979432878,-500.0,0.00013781,2]
[332129152,1720979432888,-500.0,0.00013781,2]
[332129154,1720979432898,-500.0,0.00013781,2]
[332129156,1720979432907,-500.0,0.00013781,2]
[332129158,1720979432916,-500.0,0.00013781,2]
[332129160,1720979432927,-500.0,0.00013781,2]
[332129162,1720979432936,-500.0,0.00013781,2]
[332129164,1720979432944,-500.0,0.00013781,2]
[332129166,1720979432954,-500.0,0.00013781,2]
[332129168,1720979432963,-500.0,0.00013781,2]
[332129170,1720979432972,-500.0,0.00013781,2]
[332129172,1720979432982,-500.0,0.00013781,2]
[332129174,1720979432992,-500.0,0.00013781,2]
[332129176,1720979433001,-500.0,0.00013781,2]
[332129178,1720979433010,-500.0,0.00013781,2]
[332129180,1720979433020,-500.0,0.00013781,2]
[332129182,1720979433029,-185.53,0.00013781,2]
[332129184,1720979433038,-500.0,0.00013781,2]
[332129185,1720979433047,-500.0,0.00013781,2]
[332129186,1720979433056,-500.0,0.00013781,2]
[332129187,1720979433065,-234.78946973,0.00013781,2]
[332129188,1720979433075,-500.0,0.00013781,2]
[332129189,1720979433084,-297.2123331,0.00013781,2]
[332129190,1720979433093,-500.0,0.00013781,2]
[332129191,1720979433102,-500.0,0.00013781,2]
[332129192,1720979433111,-500.0,0.00013781,2]
[332129193,1720979433121,-500.0,0.00013781,2]
[332129194,1720979433130,-500.0,0.00013781,2]
[332129195,1720979433139,-500.0,0.00013781,2]
[332129196,1720979433149,-500.0,0.00013781,2]
[332129197,1720979433158,-500.0,0.00013781,2]
[332129198,1720979433167,-500.0,0.00013781,2]
[332129199,1720979433177,-500.0,0.00013781,2]
[332129200,1720979433187,-500.0,0.00013781,2]
[332129201,1720979433196,-180.33,0.00013781,2]
[332129202,1720979433206,-500.0,0.00013781,2]
[332129203,1720979433215,-500.0,0.00013781,2]
[332129204,1720979433224,-500.0,0.00013781,2]
[332129205,1720979433233,-500.0,0.00013781,2]
[332129206,1720979433243,-500.0,0.00013781,2]
[332129207,1720979433252,-500.0,0.00013781,2]
[332129208,1720979433261,-500.0,0.00013781,2]
[332129209,1720979433271,-500.0,0.00013781,2]
[332129210,1720979433280,-504.86,0.00013781,2]
[332129211,1720979433289,-500.0,0.00013781,2]
[332129212,1720979433299,-500.0,0.00013781,2]
[332129213,1720979433308,-500.0,0.00013781,2]
[332129214,1720979433318,-500.0,0.00013781,2]
[332129215,1720979433327,-500.0,0.00013781,2]
[332129216,1720979433337,-500.0,0.00013781,2]
[332129217,1720979433346,-443.01128052,0.00013781,2]
[332129218,1720979433356,-500.0,0.00013781,2]
[332129219,1720979433365,-500.0,0.00013781,2]
[332129220,1720979433374,-500.0,0.00013781,2]
[332129221,1720979433384,-500.0,0.00013781,2]
[332129222,1720979433393,-616.81,0.00013781,2]
[332129223,1720979433403,-500.0,0.00013781,2]
[332129224,1720979433412,-500.0,0.00013781,2]
[332129225,1720979433421,-500.0,0.00013781,2]
[332129226,1720979433430,-500.0,0.00013781,2]
[332129227,1720979433440,-500.0,0.00013781,2]
[332129228,1720979433449,-500.0,0.00013781,2]
[332129229,1720979433459,-500.0,0.00013781,2]
[332129230,1720979433470,-500.0,0.00013781,2]
[332129231,1720979433479,-500.0,0.00013781,2]
[332129232,1720979433489,-500.0,0.00013781,2]
[332129233,1720979433498,-500.0,0.00013781,2]
[332129234,1720979433508,-500.0,0.00013781,2]
[332129235,1720979433517,-500.0,0.00013781,2]
[332129236,1720979433527,-500.0,0.00013781,2]
[332129237,1720979433537,-500.0,0.00013781,2]
[332129238,1720979433546,-500.0,0.00013781,2]
[332129239,1720979433556,-500.0,0.00013781,2]
[332129240,1720979433566,-497.03133282,0.00013781,2]
[332129241,1720979433575,-530.53,0.00013781,2]
[332129242,1720979433585,-500.0,0.00013781,2]
[332129243,1720979433595,-500.0,0.00013781,2]
[332129244,1720979433605,-500.0,0.00013781,2]
[332129245,1720979433615,-500.0,0.00013781,2]
[332129246,1720979433624,-500.0,0.00013781,2]
[332129247,1720979433634,-549.31,0.00013781,2]
[332129248,1720979433643,-643.02,0.00013781,2]
[332129249,1720979433652,-219.15,0.00013781,2]
[332129250,1720979433662,-500.0,0.00013781,2]
[332129251,1720979433672,-500.0,0.00013781,2]
[332129252,1720979433682,-500.0,0.00013781,2]
[332129253,1720979433691,-500.0,0.00013781,2]
[332129254,1720979433702,-500.0,0.00013781,2]
[332129255,1720979433712,-500.0,0.00013781,2]
[332129256,1720979433721,-500.0,0.00013781,2]
[332129257,1720979433731,-500.0,0.00013781,2]
[332129258,1720979433741,-163.67245269,0.00013781,2]
[332129259,1720979433751,-500.0,0.00013781,2]
[332129260,1720979433760,-500.0,0.00013781,2]
[332129261,1720979433770,-562.5,0.00013781,2]
[332129262,1720979433779,-500.0,0.00013781,2]
[332129263,1720979433789,-500.0,0.00013781,2]
[332129264,1720979433799,-500.0,0.00013781,2]
[332129265,1720979433813,-153.55,0.00013781,2]
[332129266,1720979433822,-500.0,0.00013781,2]
[332129267,1720979433832,-500.0,0.00013781,2]
[332129268,1720979433841,-500.0,0.00013781,2]
[332129269,1720979433852,-500.0,0.00013781,2]
[332129270,1720979433862,-500.0,0.00013781,2]
[332129271,1720979433871,-180.2184476,0.00013781,2]
[332129272,1720979433883,-500.0,0.00013781,2]
[332129273,1720979433892,-500.0,0.00013781,2]
[332129274,1720979433902,-268.91,0.00013781,2]
[332129275,1720979433912,-500.0,0.00013781,2]
[332129276,1720979433922,-500.0,0.00013781,2]
[332129277,1720979433931,-500.0,0.00013781,2]
[332129278,1720979433941,-525.01,0.00013781,2]
[332129279,1720979433951,-500.0,0.00013781,2]
[332129280,1720979433960,-307.96,0.00013781,2]
[332129281,1720979433971,-500.0,0.00013781,2]
[332129282,1720979433981,-500.0,0.00013781,2]
[332129283,1720979433991,-500.0,0.00013781,2]
[332129284,1720979434000,-500.0,0.00013781,2]
[332129285,1720979434010,-540.32,0.00013781,2]
[332129286,1720979434019,-150.0,0.00013781,2]
[332129287,1720979434028,-500.0,0.00013781,2]
[332129288,1720979434038,-500.0,0.00013781,2]
[332129289,1720979434048,-500.0,0.00013781,2]
[332129290,1720979434057,-500.0,0.00013781,2]
[332129291,1720979434066,-500.0,0.00013781,2]
[332129292,1720979434075,-500.0,0.00013781,2]
[332129293,1720979434085,-500.0,0.00013781,2]
[332129294,1720979434094,-500.0,0.00013781,2]
[332129295,1720979434104,-500.0,0.00013781,2]
[332129296,1720979434115,-500.0,0.00013781,2]
[332129297,1720979434124,-465.96070401,0.00013781,2]
[332129298,1720979434134,-500.0,0.00013781,2]
[332129299,1720979434144,-500.0,0.00013781,2]
[332129300,1720979434153,-500.0,0.00013781,2]
[332129301,1720979434163,-500.0,0.00013781,2]
[332129302,1720979434172,-500.0,0.00013781,2]
[332129303,1720979434182,-500.0,0.00013781,2]
[332129304,1720979434191,-500.0,0.00013781,2]
[332129305,1720979434201,-500.0,0.00013781,2]
[332129306,1720979434210,-500.0,0.00013781,2]
[332129307,1720979434220,-500.0,0.00013781,2]
[332129308,1720979434229,-500.0,0.00013781,2]
[332129309,1720979434240,-500.0,0.00013781,2]
[332129310,1720979434250,-500.0,0.00013781,2]
[332129311,1720979434260,-500.0,0.00013781,2]
[332129312,1720979434270,-500.0,0.00013781,2]
[332129313,1720979434279,-1049.15,0.00013781,2]
[332129314,1720979434288,-500.0,0.00013781,2]
[332129315,1720979434298,-500.0,0.00013781,2]
[332129316,1720979434308,-500.0,0.00013781,2]
[332129317,1720979434318,-740.57,0.00013781,2]
[332129318,1720979434327,-500.0,0.00013781,2]
[332129319,1720979434337,-500.0,0.00013781,2]
[332129320,1720979434347,-500.0,0.00013781,2]
[332129321,1720979434356,-500.0,0.00013781,2]
[332129322,1720979434366,-500.0,0.00013781,2]
[332129323,1720979434375,-500.0,0.00013781,2]
[332129324,1720979434385,-500.0,0.00013781,2]
[332129325,1720979434395,-500.0,0.00013781,2]
[332129326,1720979434404,-500.0,0.00013781,2]
[332129327,1720979434413,-500.0,0.00013781,2]
[332129328,1720979434423,-500.0,0.00013781,2]
[332129329,1720979434432,-500.0,0.00013781,2]
[332129330,1720979434441,-500.0,0.00013781,2]
[332129331,1720979434451,-500.0,0.00013781,2]
[332129332,1720979434460,-500.0,0.00013781,2]
[332129333,1720979434469,-500.0,0.00013781,2]
[332129334,1720979434479,-156.74568444,0.00013781,2]
[332129335,1720979434489,-500.0,0.00013781,2]
[332129336,1720979434498,-500.0,0.00013781,2]
[332129337,1720979434508,-500.0,0.00013781,2]
[332129338,1720979434517,-500.0,0.00013781,2]
[332129339,1720979434526,-262.79004796,0.00013781,2]
[332129340,1720979434536,-500.0,0.00013781,2]
[332129341,1720979434545,-453.54862207,0.00013781,2]
[332129342,1720979434555,-268.95,0.00013781,2]
[332129343,1720979434564,-500.0,0.00013781,2]
[332129344,1720979434574,-500.0,0.00013781,2]
[332129345,1720979434584,-500.0,0.00013781,2]
[332129346,1720979434593,-500.0,0.00013781,2]
[332129347,1720979434603,-424.88156119,0.00013781,2]
[332129348,1720979434652,-75.11843881,0.00013781,2]
[332129349,1720979434662,-500.0,0.00013781,2]
[332129350,1720979434673,-500.0,0.00013781,2]
[332129351,1720979434682,-500.0,0.00013781,2]
[332129352,1720979434692,-500.0,0.00013781,2]
[332129353,1720979434702,-500.0,0.00013781,2]
[332129354,1720979434711,-500.0,0.00013781,2]
[332129355,1720979434721,-500.0,0.00013781,2]
[332129356,1720979434730,-500.0,0.00013781,2]
[332129357,1720979434740,-500.0,0.00013781,2]
[332129358,1720979434750,-500.0,0.00013781,2]
[332129359,1720979434760,-500.0,0.00013781,2]
[332129360,1720979434769,-929.33,0.00013781,2]
[332129361,1720979434779,-500.0,0.00013781,2]
[332129362,1720979434789,-500.0,0.00013781,2]
[332129363,1720979434799,-500.0,0.00013781,2]
[332129364,1720979434813,-500.0,0.00013781,2]
[332129365,1720979434823,-500.0,0.00013781,2]
[332129366,1720979434833,-500.0,0.00013781,2]
[332129367,1720979434843,-500.0,0.00013781,2]
[332129368,1720979434855,-587.13,0.00013781,2]
[332129369,1720979434865,-500.0,0.00013781,2]
[332129370,1720979434874,-152.82,0.00013781,2]
[332129371,1720979434886,-500.0,0.00013781,2]
[332129372,1720979434896,-500.0,0.00013781,2]
[332129373,1720979434906,-500.0,0.00013781,2]
[332129374,1720979434915,-500.0,0.00013781,2]
[332129375,1720979434925,-534.7,0.00013781,2]
[332129376,1720979434934,-1070.65,0.00013781,2]
[332129377,1720979434946,-500.0,0.00013781,2]
[332129378,1720979434956,-500.0,0.00013781,2]
[332129379,1720979434967,-500.0,0.00013781,2]
[332129380,1720979434977,-500.0,0.00013781,2]
[332129381,1720979434986,-846.31,0.00013781,2]
[332129382,1720979434995,-500.0,0.00013781,2]
[332129383,1720979435005,-500.0,0.00013781,2]
[332129384,1720979435014,-500.0,0.00013781,2]
[332129385,1720979435023,-500.0,0.00013781,2]
[332129386,1720979435032,-579.91,0.00013781,2]
[332129387,1720979435042,-500.0,0.00013781,2]
[332129388,1720979435052,-500.0,0.00013781,2]
[332129389,1720979435061,-500.0,0.00013781,2]
[332129390,1720979435071,-500.0,0.00013781,2]
[332129391,1720979435081,-500.0,0.00013781,2]
[332129392,1720979435090,-500.0,0.00013781,2]
[332129393,1720979435099,-500.0,0.00013781,2]
[332129394,1720979435108,-500.0,0.00013781,2]
[332129395,1720979435118,-500.0,0.00013781,2]
[332129396,1720979435128,-786.0,0.00013781,2]
[332129397,1720979435137,-500.0,0.00013781,2]
[332129398,1720979435146,-500.0,0.00013781,2]
[332129399,1720979435155,-500.0,0.00013781,2]
[332129400,1720979435165,-500.0,0.00013781,2]
[332129401,1720979435174,-500.0,0.00013781,2]
[332129402,1720979435183,-500.0,0.00013781,2]
[332129403,1720979435193,-500.0,0.00013781,2]
[332129404,1720979435203,-501.51,0.00013781,2]
[332129405,1720979435212,-500.0,0.00013781,2]
[332129406,1720979435221,-500.0,0.00013781,2]
[332129407,1720979435230,-500.0,0.00013781,2]